bitfinex-derivatives/quotes_BTCF0:USTF0_20240910
["timestamp","ask_amount","ask_price","bid_price","bid_amount"]
[1725972687436,0.162,57241.0,57240.0,0.002]
[1725972687437,0.249345,57241.0,57240.0,0.002]
[1725972687651,0.43369,57241.0,57240.0,0.002]
[1725972688944,0.43869,57241.0,57240.0,0.001]
[1725972689338,0.087353,57236.0,57235.0,0.0004]
[1725972689542,0.247353,57236.0,57235.0,0.0004]
[1725972690950,0.247353,57236.0,57235.0,0.0014]
[1725972692153,0.248353,57236.0,57235.0,0.0024]
[1725972692552,0.161,57236.0,57235.0,0.089754]
[1725972692848,0.001,57236.0,57235.0,0.088754]
[1725972693553,0.001,57236.0,57235.0,0.089754]
[1725972693948,0.136145,57241.0,57240.0,0.087347]
[1725972694261,0.08734,57245.0,57244.0,0.08734]
[1725972694553,0.08734,57245.0,57244.0,0.08774]
[1725972695349,0.16,57247.0,57246.0,0.087337]
[1725972695550,0.0681063,57249.0,57246.0,0.087737]
[1725972695743,0.087336,57247.0,57246.0,0.0004]
[1725972696757,0.088336,57247.0,57246.0,0.0004]
[1725972697441,0.087336,57247.0,57246.0,0.0004]
[1725972697753,0.088336,57247.0,57246.0,0.0004]
[1725972698952,0.175672,57247.0,57246.0,0.0004]
[1725972699249,0.088336,57247.0,57246.0,0.0004]
[1725972699755,0.090336,57247.0,57246.0,0.0004]
[1725972700355,0.177672,57247.0,57246.0,0.0004]
[1725972700548,0.090336,57247.0,57246.0,0.0004]
[1725972700946,0.179672,57247.0,57246.0,0.0004]
[1725972701244,0.092336,57247.0,57246.0,0.0004]
[1725972701447,0.13511375,57247.0,57246.0,0.0004]
[1725972702149,0.22244975,57247.0,57246.0,0.0004]
[1725972702656,0.04777775,57247.0,57235.0,0.0004]
[1725972702850,0.16,57236.0,57235.0,0.0004]
[1725972703252,0.16,57242.0,57241.0,0.087345]
[1725972703552,0.16,57242.0,57241.0,0.087745]
[1725972703861,0.0681063,57249.0,57245.0,0.087337]
[1725972703862,0.247338,57246.0,57245.0,0.087337]
[1725972704062,0.2901127,57246.0,57245.0,0.087737]
[1725972704359,0.247338,57246.0,57245.0,0.087737]
[1725972704556,0.29011133,57246.0,57245.0,0.087737]
[1725972704755,0.29011343,57246.0,57245.0,0.087737]
[1725972705452,0.002,57247.0,57246.0,0.087337]
[1725972705653,0.001,57247.0,57246.0,0.247737]
[1725972706164,0.22645699,57252.0,57246.0,0.0004]
[1725972706359,0.04277215,57251.0,57246.0,0.0004]
[1725972706553,0.04277215,57250.0,57242.0,0.249703]
[1725972706754,0.0427725,57249.0,57242.0,0.247343]
[1725972706955,0.24298714,57252.0,57251.0,0.08733]
[1725972707260,0.33937206,57252.0,57251.0,0.08773]
[1725972707459,0.087329,57252.0,57251.0,0.08773]
[1725972708061,0.087329,57252.0,57251.0,0.0004]
[1725972709364,0.087329,57252.0,57251.0,0.08773]
[1725972710060,0.009,57252.0,57251.0,0.08773]
[1725972710466,0.016,57252.0,57251.0,0.08773]
[1725972711967,0.103328,57252.0,57251.0,0.08773]
[1725972714663,0.103328,57252.0,57251.0,0.0004]
[1725972714664,0.190656,57252.0,57251.0,0.0004]
[1725972714860,0.103328,57252.0,57251.0,0.0004]
[1725972715967,0.016,57252.0,57251.0,0.08773]
[1725972716261,0.0156,57252.0,57251.0,0.42239]
[1725972716465,0.0462,57268.0,57265.0,0.087307]
[1725972716673,0.087307,57266.0,57265.0,0.087307]
[1725972718065,0.101307,57266.0,57265.0,0.087307]
[1725972719163,0.087311,57264.0,57262.0,0.087313]
[1725972719373,0.087312,57263.0,57262.0,0.087313]
[1725972719566,0.247311,57264.0,57262.0,0.087313]
[1725972719863,0.087312,57263.0,57262.0,0.087313]
[1725972720371,0.087316,57261.0,57259.0,0.087318]
[1725972720671,0.16,57260.0,57259.0,0.087318]
[1725972721059,0.188,57264.0,57263.0,0.087312]
[1725972721260,0.028,57264.0,57263.0,0.087712]
[1725972721567,0.014,57264.0,57263.0,0.087712]
[1725972722464,0.11035863,57264.0,57263.0,0.087712]
[1725972722667,0.09635863,57264.0,57263.0,0.087712]
[1725972722972,0.23398103,57264.0,57263.0,0.087712]
[1725972723165,0.09635877,57264.0,57263.0,0.087712]
[1725972723761,0.10935877,57264.0,57263.0,0.176024]
[1725972723962,0.05576089,57264.0,57263.0,0.176024]
[1725972724167,0.05576089,57264.0,57263.0,0.089712]
[1725972724168,0.06976089,57264.0,57263.0,0.089712]
[1725972724367,0.06976089,57264.0,57263.0,0.137612]
[1725972725569,0.06976089,57264.0,57263.0,0.224924]
[1725972725878,0.027,57264.0,57263.0,1.348804]
[1725972726072,0.027,57264.0,57263.0,1.261492]
[1725972726770,0.06975666,57264.0,57263.0,1.348804]
[1725972727164,0.027,57264.0,57263.0,1.436116]
[1725972727362,0.014,57264.0,57263.0,1.436116]
[1725972727565,0.13894227,57272.0,57269.0,0.087302]
[1725972727763,0.04275228,57271.0,57270.0,0.311103]
[1725972727968,0.13894227,57278.0,57271.0,0.087299]
[1725972728277,0.24012014,57288.0,57271.0,0.087299]
[1725972728278,0.13894227,57285.0,57277.0,0.1604]
[1725972728467,0.04274435,57284.0,57278.0,0.0944]
[1725972728669,0.04274435,57283.0,57282.0,0.247283]
[1725972728864,0.13894227,57289.0,57282.0,0.16]
[1725972729083,0.23538298,57296.0,57295.0,0.087263]
[1725972729378,0.27171284,57296.0,57295.0,0.087263]
[1725972729580,0.09631002,57296.0,57295.0,0.087263]
[1725972729872,0.09631002,57296.0,57289.0,0.16]
[1725972729873,0.04273586,57296.0,57290.0,0.08727]
[1725972730076,0.12138895,57292.0,57291.0,0.087269]
[1725972730270,0.12138895,57295.0,57294.0,0.087264]
[1725972730465,0.007,57296.0,57294.0,0.0004]
[1725972730664,0.007,57296.0,57295.0,0.0004]
[1725972730875,0.007,57296.0,57295.0,0.087663]
[1725972732077,0.089261,57296.0,57295.0,0.0014]
[1725972732374,0.256261,57296.0,57295.0,0.0014]
[1725972732975,0.249261,57296.0,57295.0,0.0014]
[1725972733278,0.249261,57296.0,57295.0,0.0034]
[1725972733684,0.247261,57296.0,57295.0,0.0024]
[1725972733891,0.247261,57296.0,57295.0,0.0004]
[1725972734086,0.251261,57296.0,57295.0,0.0004]
[1725972735478,0.247261,57296.0,57295.0,0.0004]
[1725972735881,1.458122,57296.0,57295.0,0.0004]
[1725972736085,0.087272,57289.0,57288.0,0.0004]
[1725972736274,0.247272,57289.0,57288.0,0.0004]
[1725972736471,0.867272,57289.0,57288.0,0.0004]
[1725972737071,0.087278,57285.0,57275.0,0.0041]
[1725972737287,0.087278,57285.0,57273.0,0.087296]
[1725972737485,0.087278,57285.0,57282.0,0.087281]
[1725972737684,0.16844683,57288.0,57282.0,0.087281]
[1725972737685,0.08728,57284.0,57282.0,0.087281]
[1725972737872,0.16844683,57288.0,57270.0,0.0041]
[1725972737873,0.16,57285.0,57270.0,0.0041]
[1725972738182,0.16844683,57288.0,57262.0,0.32416]
[1725972738183,0.16,57273.0,57265.0,0.0041]
[1725972738386,0.13873023,57279.0,57271.0,0.087298]
[1725972738683,0.2073,57272.0,57263.0,0.0041]
[1725972738881,0.0873,57271.0,57260.0,0.178815]
[1725972739074,0.087316,57261.0,57257.0,0.00236]
[1725972739276,0.16,57270.0,57269.0,0.087302]
[1725972739485,0.0463,57278.0,57273.0,0.087296]
[1725972739486,0.13873023,57274.0,57273.0,0.087296]
[1725972739686,0.04275677,57274.0,57273.0,0.087696]
[1725972739887,0.04275677,57274.0,57273.0,0.087296]
[1725972740285,0.04275399,57274.0,57270.0,0.014]
[1725972740584,0.27331723,57279.0,57270.0,0.014]
[1725972740894,0.27331723,57279.0,57269.0,0.0004]
[1725972740895,0.087291,57277.0,57273.0,0.003]
[1725972741186,0.042754,57276.0,57273.0,0.003]
[1725972741384,0.042754,57276.0,57269.0,0.0004]
[1725972741587,0.042754,57276.0,57270.0,0.006]
[1725972741973,0.042754,57275.0,57274.0,0.087294]
[1725972742178,0.130049,57275.0,57273.0,0.003]
[1725972742384,0.042754,57274.0,57273.0,0.008]
[1725972742780,0.130049,57274.0,57273.0,0.008]
[1725972742982,0.40487423,57274.0,57273.0,0.008]
[1725972743188,0.266144,57274.0,57273.0,0.003]
[1725972743482,0.087301,57270.0,57269.0,0.0004]
[1725972743689,0.350055,57270.0,57269.0,0.0004]
[1725972744781,0.350055,57270.0,57269.0,0.0024]
[1725972745287,0.130055,57270.0,57269.0,0.0004]
[1725972745589,0.087301,57270.0,57269.0,0.0004]
[1725972745775,0.087301,57270.0,57269.0,0.0024]
[1725972745975,0.307301,57270.0,57269.0,0.0024]
[1725972747088,0.394602,57270.0,57269.0,0.0024]
[1725972749785,0.481903,57270.0,57269.0,0.0024]
[1725972750089,1.605743,57270.0,57269.0,0.0024]
[1725972750292,0.087328,57252.0,57251.0,0.06946566]
[1725972750490,0.22,57253.0,57244.0,0.06946566]
[1725972750789,0.087322,57256.0,57234.0,0.0455]
[1725972750790,0.087334,57249.0,57240.0,0.06946566]
[1725972750992,0.3192,57251.0,57247.0,0.087335]
[1725972751183,0.087334,57248.0,57247.0,0.087335]
[1725972751586,0.087339,57246.0,57240.0,0.06946566]
[1725972751785,0.087339,57246.0,57239.0,0.06946566]
[1725972752090,0.087339,57245.0,57243.0,0.087341]
[1725972752687,0.087339,57245.0,57244.0,0.087341]
[1725972753388,0.087334,57248.0,57247.0,0.087336]
[1725972753592,0.087334,57248.0,57247.0,0.087736]
[1725972753791,0.087334,57248.0,57247.0,0.088736]
[1725972754193,0.087334,57248.0,57247.0,0.0014]
[1725972754390,0.087334,57248.0,57247.0,0.0004]
[1725972756385,0.087334,57248.0,57247.0,0.0034]
[1725972756885,0.3385966,57251.0,57249.0,0.087332]
[1725972756886,0.08733,57251.0,57249.0,0.087332]
[1725972757199,0.08733,57251.0,57250.0,0.087731]
[1725972758203,0.08733,57251.0,57250.0,0.0004]
[1725972758492,0.08733,57251.0,57250.0,0.0024]
[1725972759498,0.08833,57251.0,57250.0,0.0024]
[1725972760197,0.08733,57251.0,57250.0,0.0064]
[1725972761493,0.30733,57251.0,57250.0,0.0064]
[1725972761693,0.394661,57251.0,57250.0,0.0064]
[1725972764098,0.334661,57251.0,57250.0,0.0064]
[1725972765208,0.334661,57251.0,57250.0,0.0044]
[1725972765399,0.421992,57251.0,57250.0,0.0044]
[1725972765596,0.087352,57238.0,57237.0,0.087349]
[1725972767292,0.087346,57241.0,57240.0,0.087344]
[1725972767493,0.087346,57241.0,57240.0,0.087744]
[1725972768904,0.088346,57241.0,57240.0,0.104744]
[1725972769806,0.088346,57241.0,57240.0,0.0174]
[1725972769807,0.175692,57241.0,57240.0,0.0174]
[1725972770503,0.263038,57241.0,57240.0,0.0174]
[1725972772499,0.087368,57226.0,57225.0,0.091469]
[1725972772704,0.087368,57226.0,57225.0,0.087369]
[1725972773712,0.088368,57226.0,57225.0,0.101369]
[1725972774914,0.089368,57226.0,57225.0,0.115369]
[1725972775302,0.13571184,57229.0,57225.0,0.24704592]
[1725972775504,0.16,57228.0,57226.0,0.21860159]
[1725972775710,0.16,57228.0,57226.0,0.0869497]
[1725972775917,0.087366,57227.0,57226.0,0.1743177]
[1725972776100,0.087366,57227.0,57226.0,0.30596966]
[1725972776300,0.087362,57231.0,57229.0,0.087363]
[1725972776515,0.087362,57231.0,57230.0,0.0004]
[1725972776714,0.247355,57235.0,57230.0,0.0004]
[1725972776909,0.08735,57238.0,57237.0,0.087348]
[1725972777211,0.08735,57238.0,57237.0,0.087748]
[1725972777418,0.08735,57238.0,57237.0,0.15691686]
[1725972778310,0.08735,57238.0,57237.0,0.087348]
[1725972779213,0.24735,57238.0,57237.0,0.098348]
[1725972779619,0.24735,57238.0,57237.0,0.011]
[1725972780114,0.24835,57238.0,57237.0,0.02]
[1725972780302,0.24835,57238.0,57237.0,0.23771319]
[1725972780718,0.24835,57238.0,57237.0,0.02]
[1725972781012,0.001,57238.0,57237.0,0.23809252]
[1725972782307,0.001,57238.0,57237.0,0.107351]
[1725972782615,0.087338,57246.0,57237.0,0.15058334]
[1725972782917,0.087338,57246.0,57245.0,0.0004]
[1725972783122,0.087338,57246.0,57245.0,0.087739]
[1725972784418,0.10725318,57250.0,57245.0,0.0004]
[1725972784714,0.422011,57246.0,57245.0,0.0004]
[1725972784916,0.422011,57246.0,57239.0,0.06966026]
[1725972784917,0.087345,57241.0,57239.0,0.05224824]
[1725972785217,0.3015,57240.0,57238.0,0.05224824]
[1725972785406,0.3015,57240.0,57237.0,0.06124824]
[1725972785407,0.1747,57238.0,57237.0,0.06124824]
[1725972785721,0.1747,57238.0,57234.0,0.0004]
[1725972785722,0.24735,57238.0,57234.0,0.0004]
[1725972785905,0.52416,57237.0,57234.0,0.0004]
[1725972786110,0.174708,57235.0,57234.0,0.0004]
[1725972786313,0.087354,57235.0,57234.0,0.0004]
[1725972786527,0.087351,57237.0,57234.0,0.0004]
[1725972786814,0.1415,57240.0,57234.0,0.05266202]
[1725972786815,0.087354,57235.0,57234.0,0.05266202]
[1725972787014,0.087354,57235.0,57234.0,0.0164]
[1725972787420,0.087354,57235.0,57234.0,0.06866171]
[1725972787715,0.087354,57235.0,57234.0,0.103756]
[1725972787915,0.10701162,57235.0,57234.0,0.103756]
[1725972788116,0.10701162,57235.0,57234.0,0.15601834]
[1725972788511,0.001,57238.0,57234.0,0.0164]
[1725972788716,0.001,57238.0,57237.0,0.087751]
[1725972789224,0.001,57238.0,57237.0,0.15741126]
[1725972789225,0.08835,57238.0,57237.0,0.15741126]
[1725972789523,0.08735,57238.0,57237.0,0.15741126]
[1725972789917,0.087344,57243.0,57237.0,0.0004]
[1725972790218,0.087344,57243.0,57242.0,0.14001362]
[1725972790419,0.087344,57243.0,57242.0,0.087744]
[1725972791015,0.175687,57243.0,57242.0,0.0004]
[1725972791219,0.135543,57243.0,57242.0,0.0004]
[1725972791519,0.10779285,57243.0,57242.0,0.0004]
[1725972792720,0.10879285,57243.0,57242.0,0.0054]
[1725972793317,0.10779285,57243.0,57242.0,0.0004]
[1725972793517,0.10679285,57243.0,57242.0,0.0004]
[1725972795120,0.19413485,57243.0,57242.0,0.0004]
[1725972795318,0.10679185,57243.0,57242.0,0.0004]
[1725972797627,0.19413385,57243.0,57242.0,0.0004]
[1725972798920,0.28147585,57243.0,57242.0,0.0004]
[1725972799122,0.19413385,57243.0,57242.0,0.0004]
[1725972799729,0.28147585,57243.0,57242.0,0.0004]
[1725972800329,1.23087185,57243.0,57234.0,0.0004]
[1725972800638,0.174706,57236.0,57235.0,0.05233581]
[1725972800936,0.174708,57235.0,57234.0,0.0004]
[1725972801236,0.271208,57235.0,57234.0,0.0004]
[1725972801432,0.174714,57233.0,57232.0,0.05233581]
[1725972801733,0.174714,57233.0,57230.0,0.05233581]
[1725972801734,0.08736,57231.0,57230.0,0.05233581]
[1725972801932,0.08736,57231.0,57229.0,0.05233581]
[1725972801933,0.174724,57230.0,57229.0,0.05233581]
[1725972802231,0.174726,57229.0,57228.0,0.05233581]
[1725972802528,0.17473,57228.0,57227.0,0.05233581]
[1725972802727,0.33473,57228.0,57227.0,0.05233581]
[1725972804133,0.247365,57228.0,57227.0,0.05233581]
[1725972804629,0.27015551,57228.0,57227.0,0.05233581]
[1725972804825,0.35752051,57228.0,57227.0,0.05233581]
[1725972805225,0.27115551,57228.0,57227.0,0.05233581]
[1725972805432,0.27115551,57228.0,57224.0,0.06966026]
[1725972805433,0.08737,57225.0,57224.0,0.05233581]
[1725972805635,0.087373,57223.0,57222.0,0.05233581]
[1725972805835,0.247373,57223.0,57222.0,0.05233581]
[1725972806329,0.087374,57222.0,57221.0,0.13971081]
[1725972806531,0.087374,57222.0,57221.0,0.087375]
[1725972807128,0.087379,57219.0,57218.0,0.06966026]
[1725972807330,0.247379,57219.0,57218.0,0.05230414]
[1725972807530,0.247379,57219.0,57216.0,0.05230414]
[1725972807531,0.087382,57217.0,57216.0,0.05230414]
[1725972808129,0.087382,57217.0,57216.0,0.13968714]
[1725972808333,0.087385,57215.0,57213.0,0.14360414]
[1725972808636,0.247385,57215.0,57214.0,0.087386]
[1725972809345,0.16,57215.0,57214.0,0.087386]
[1725972809640,0.161,57215.0,57214.0,0.087386]
[1725972810538,0.162,57215.0,57214.0,0.092386]
[1725972810734,0.162,57215.0,57214.0,0.005]
[1725972810735,0.33677,57215.0,57214.0,0.005]
[1725972810945,0.33677,57215.0,57204.0,0.05226835]
[1725972810946,0.26920169,57215.0,57204.0,0.05226835]
[1725972811239,0.26920169,57215.0,57202.0,0.05226835]
[1725972811240,0.087403,57203.0,57202.0,0.05226835]
[1725972811440,0.16,57205.0,57199.0,0.087409]
[1725972811636,0.16,57200.0,57199.0,0.087409]
[1725972812035,0.16,57207.0,57199.0,0.52448]
[1725972812238,0.087389,57213.0,57210.0,0.087391]
[1725972812441,0.087394,57210.0,57208.0,0.087394]
[1725972812638,0.087394,57210.0,57209.0,0.087394]
[1725972813230,0.247394,57210.0,57209.0,0.087394]
[1725972814240,0.248394,57210.0,57209.0,0.087394]
[1725972814442,0.249394,57210.0,57209.0,0.092394]
[1725972815749,0.248394,57210.0,57209.0,0.092394]
[1725972816045,0.249394,57210.0,57209.0,0.092394]
[1725972816247,0.249394,57210.0,57209.0,0.005]
[1725972818641,0.249394,57210.0,57209.0,0.092394]
[1725972820646,0.162,57210.0,57209.0,0.092394]
[1725972820849,0.23538298,57228.0,57209.0,0.6894]
[1725972821039,0.16075406,57252.0,57209.0,0.6894]
[1725972821040,0.247372,57224.0,57213.0,0.16]
[1725972821242,0.247372,57224.0,57223.0,0.087373]
[1725972821243,0.16,57224.0,57223.0,0.087373]
[1725972821548,0.247371,57224.0,57223.0,0.087373]
[1725972822047,0.087375,57222.0,57215.0,0.05222329]
[1725972822236,0.08738,57220.0,57219.0,0.087378]
[1725972823246,0.087375,57222.0,57220.0,0.087376]
[1725972823439,0.16,57221.0,57220.0,0.087376]
[1725972823837,0.247376,57221.0,57220.0,0.087376]
[1725972824546,0.249376,57221.0,57220.0,0.087376]
[1725972826542,0.087382,57218.0,57216.0,0.087382]
[1725972826743,0.16,57216.0,57215.0,0.13960829]
[1725972827353,0.16,57220.0,57219.0,0.087379]
[1725972827550,0.16,57220.0,57219.0,0.087779]
[1725972827853,0.247377,57220.0,57219.0,0.087779]
[1725972828548,0.334754,57220.0,57219.0,0.0004]
[1725972828754,0.247377,57220.0,57219.0,0.0004]
[1725972829053,0.248377,57220.0,57219.0,0.0014]
[1725972829639,0.248377,57220.0,57219.0,0.088779]
[1725972833049,0.001,57220.0,57219.0,1.387817]
[1725972833352,0.247366,57227.0,57226.0,0.087368]
[1725972833559,0.247362,57230.0,57229.0,0.087363]
[1725972833746,0.247362,57230.0,57229.0,0.087763]
[1725972833944,0.247362,57230.0,57229.0,0.087363]
[1725972834150,0.2370548,57238.0,57226.0,0.0004]
[1725972834151,0.087359,57232.0,57226.0,0.0004]
[1725972834346,0.087359,57232.0,57231.0,0.0004]
[1725972835756,0.087359,57232.0,57231.0,0.08776]
[1725972836053,0.101359,57232.0,57231.0,0.08876]
[1725972836259,0.113359,57232.0,57231.0,0.08876]
[1725972837753,0.026,57232.0,57231.0,0.08876]
[1725972837947,0.026,57232.0,57231.0,1.36998026]
[1725972838141,0.026,57232.0,57231.0,0.70886]
[1725972838552,0.026,57232.0,57231.0,1.30886]
[1725972838950,0.026,57232.0,57231.0,0.08876]
[1725972839261,0.014,57232.0,57231.0,0.08876]
[1725972839455,0.015,57232.0,57231.0,0.08976]
[1725972840952,0.015,57232.0,57231.0,0.15937586]
[1725972841150,0.001,57232.0,57231.0,0.15837586]
[1725972841455,0.089359,57232.0,57231.0,0.08001371]
[1725972841652,0.002,57232.0,57231.0,0.09776]
[1725972841849,0.247356,57234.0,57232.0,0.087359]
[1725972842054,0.247356,57234.0,57232.0,0.13956961]
[1725972842357,0.247356,57234.0,57233.0,0.0004]
[1725972842757,0.29013941,57234.0,57233.0,0.0004]
[1725972843751,0.247356,57234.0,57233.0,0.0004]
[1725972843958,0.2901399,57234.0,57233.0,0.0004]
[1725972844567,0.2988548,57237.0,57233.0,0.0004]
[1725972844759,0.04278359,57236.0,57233.0,0.0044]
[1725972844959,0.1841548,57239.0,57236.0,0.0004]
[1725972845158,0.22249223,57245.0,57236.0,0.0004]
[1725972845159,0.12175044,57240.0,57238.0,0.0004]
[1725972845365,0.2091,57245.0,57239.0,0.0004]
[1725972845366,0.12175044,57244.0,57239.0,0.0004]
[1725972845663,0.12175044,57244.0,57238.0,0.24735]
[1725972845664,0.12175044,57247.0,57246.0,0.087337]
[1725972845849,0.16,57249.0,57246.0,0.0004]
[1725972845850,0.12175044,57249.0,57246.0,0.0004]
[1725972846053,0.12175044,57251.0,57250.0,0.087331]
[1725972846260,0.16,57252.0,57251.0,0.08733]
[1725972846770,0.16,57252.0,57248.0,0.0004]
[1725972846958,0.16,57249.0,57248.0,0.0004]
[1725972847159,0.16,57249.0,57248.0,0.087734]
[1725972847664,0.247333,57249.0,57248.0,0.0004]
[1725972848364,0.259333,57249.0,57248.0,0.0014]
[1725972849165,0.38108344,57249.0,57195.0,0.3014823]
[1725972849462,2.1e-07,57223.0,57222.0,0.262122]
[1725972849763,2.1e-07,57223.0,57222.0,0.786402]
[1725972849960,2.1e-07,57223.0,57222.0,1.299028]
[1725972850659,0.08735,57238.0,57235.0,0.087353]
[1725972850862,0.16,57236.0,57235.0,0.087353]
[1725972851664,0.16,57236.0,57231.0,0.08736]
[1725972851962,0.0455,57237.0,57231.0,0.08736]
[1725972851963,0.16,57232.0,57231.0,0.08736]
[1725972852865,0.16,57232.0,57231.0,0.08836]
[1725972853064,0.16,57232.0,57231.0,0.09536]
[1725972853767,0.161,57232.0,57231.0,0.09536]
[1725972854660,0.161,57232.0,57231.0,0.08836]
[1725972854861,0.162,57232.0,57231.0,0.09536]
[1725972855462,0.161,57232.0,57231.0,0.08836]
[1725972855668,0.162,57232.0,57231.0,0.09536]
[1725972855964,0.002,57232.0,57231.0,0.09536]
[1725972856564,0.001,57232.0,57231.0,0.09436]
[1725972856758,0.001,57232.0,57231.0,0.08836]
[1725972857060,0.001,57232.0,57231.0,0.09536]
[1725972857061,0.002,57232.0,57231.0,0.09536]
[1725972858070,0.089359,57232.0,57231.0,0.008]
[1725972859368,0.089359,57232.0,57231.0,0.08836]
[1725972859369,0.001,57232.0,57231.0,0.08836]
[1725972859557,0.002,57232.0,57231.0,1.30592]
[1725972861862,0.002,57232.0,57231.0,1.21856]
[1725972862068,0.001,57232.0,57231.0,1.21756]
[1725972862265,0.002,57232.0,57231.0,0.61856]
[1725972862662,0.002,57232.0,57231.0,1.21856]
[1725972865263,0.002,57232.0,57231.0,0.61856]
[1725972865468,0.002,57232.0,57231.0,0.09436]
[1725972868067,0.089359,57232.0,57231.0,0.09436]
[1725972870678,0.002,57232.0,57231.0,0.09436]
[1725972872376,0.089359,57232.0,57231.0,0.09436]
[1725972872675,0.089359,57232.0,57231.0,0.16391528]
[1725972873281,0.089359,57232.0,57231.0,0.09436]
[1725972874475,0.002,57232.0,57231.0,0.09436]
[1725972874782,0.0469,57244.0,57241.0,0.087345]
[1725972874978,0.0469,57244.0,57241.0,0.087745]
[1725972875677,0.1388548,57253.0,57252.0,0.087328]
[1725972875884,0.1388548,57253.0,57252.0,0.087728]
[1725972876375,0.12210791,57256.0,57253.0,0.087325]
[1725972876581,0.12210791,57256.0,57255.0,0.087724]
[1725972879285,0.15010791,57256.0,57255.0,0.088724]
[1725972880188,0.15010791,57256.0,57255.0,0.0014]
[1725972880380,0.028,57256.0,57255.0,0.0014]
[1725972881082,0.29776791,57256.0,57255.0,0.0014]
[1725972881484,0.29776791,57256.0,57255.0,0.088724]
[1725972882488,0.20139223,57256.0,57255.0,0.248724]
[1725972882788,0.20139223,57256.0,57255.0,0.088724]
[1725972883984,0.20139223,57256.0,57255.0,0.0014]
[1725972884189,0.28871423,57256.0,57255.0,0.0014]
[1725972884991,0.20139223,57256.0,57255.0,0.088724]
[1725972886393,0.028,57256.0,57255.0,0.088724]
[1725972887186,0.014,57256.0,57255.0,0.087724]
[1725972887389,0.026,57256.0,57255.0,0.088724]
[1725972888398,0.022,57256.0,57255.0,0.088724]
[1725972889193,0.012,57256.0,57255.0,0.088724]
[1725972889390,0.022,57256.0,57255.0,0.088724]
[1725972890102,0.109322,57256.0,57255.0,0.088724]
[1725972890687,0.022,57256.0,57255.0,0.088724]
[1725972892693,0.022,57256.0,57255.0,0.087724]
[1725972892887,0.022,57256.0,57255.0,0.088724]
[1725972894089,0.022,57256.0,57255.0,0.248724]
[1725972894595,0.022,57256.0,57255.0,0.088724]
[1725972894988,0.0718,57256.0,57255.0,0.088724]
[1725972898796,0.0718,57256.0,57255.0,0.0014]
[1725972898797,0.159122,57256.0,57255.0,0.0014]
[1725972900603,0.0718,57256.0,57255.0,0.088724]
[1725972900902,0.022,57256.0,57255.0,0.088724]
[1725972902805,0.11837123,57256.0,57255.0,0.088724]
[1725972903304,0.21322014,57256.0,57255.0,0.088724]
[1725972903496,0.30959137,57256.0,57255.0,0.088724]
[1725972903699,0.39691337,57256.0,57255.0,0.0014]
[1725972903899,0.20569323,57256.0,57255.0,0.0014]
[1725972904709,0.29301523,57256.0,57255.0,0.0014]
[1725972904898,0.087324,57255.0,57247.0,0.087335]
[1725972905102,0.11837123,57256.0,57237.0,0.087351]
[1725972905103,0.087346,57241.0,57237.0,0.087351]
[1725972905314,0.16,57238.0,57237.0,0.087351]
[1725972905503,0.34237068,57238.0,57237.0,0.087351]
[1725972906102,0.20276642,57238.0,57237.0,0.087351]
[1725972907006,0.20376642,57238.0,57237.0,0.095351]
[1725972907206,0.20376642,57238.0,57237.0,0.008]
[1725972907408,0.04376642,57238.0,57237.0,0.008]
[1725972907604,0.12303098,57238.0,57237.0,1.466822]
[1725972908000,0.001,57238.0,57237.0,1.466822]
[1725972908209,0.001,57238.0,57237.0,1.507922]
[1725972908507,0.002,57238.0,57237.0,1.510922]
[1725972908908,0.002,57238.0,57237.0,1.535888]
[1725972909105,0.001,57238.0,57237.0,1.527888]
[1725972909315,0.002,57238.0,57237.0,1.534888]
[1725972909707,0.002,57238.0,57237.0,1.509922]
[1725972909908,0.002,57238.0,57237.0,0.898451]
[1725972910109,0.002,57238.0,57237.0,0.138451]
[1725972910506,0.12203098,57239.0,57238.0,0.08735]
[1725972910706,0.12203098,57239.0,57238.0,0.32246256]
[1725972911306,0.12203098,57239.0,57238.0,0.21781377]
[1725972911711,0.12303098,57239.0,57238.0,0.22081377]
[1725972912118,0.21037898,57239.0,57238.0,0.13346377]
[1725972912511,0.20937898,57239.0,57238.0,0.13046377]
[1725972912810,0.21037898,57239.0,57238.0,0.13346377]
[1725972913214,0.21037898,57239.0,57238.0,0.22063888]
[1725972913410,0.21137898,57239.0,57238.0,0.22663888]
[1725972914016,0.21137898,57239.0,57238.0,0.22063888]
[1725972914216,0.29872698,57239.0,57238.0,0.0034]
[1725972914417,0.21137898,57239.0,57238.0,0.05770196]
[1725972914714,0.21137898,57239.0,57238.0,0.0054]
[1725972915615,0.087356,57234.0,57230.0,0.06973626]
[1725972915917,0.087356,57234.0,57226.0,0.05228656]
[1725972915918,0.2054,57233.0,57226.0,0.05228656]
[1725972916119,0.16,57227.0,57223.0,0.05228656]
[1725972916311,0.16,57227.0,57224.0,0.087371]
[1725972916618,0.16,57227.0,57224.0,0.13965756]
[1725972917116,0.247367,57227.0,57224.0,0.087371]
[1725972917711,0.087369,57226.0,57223.0,0.001]
[1725972918304,0.16,57227.0,57223.0,0.001]
[1725972918508,0.087371,57225.0,57223.0,0.001]
[1725972919316,0.087371,57225.0,57221.0,0.087376]
[1725972919820,0.161,57227.0,57222.0,0.087374]
[1725972920116,0.0468,57232.0,57209.0,0.087393]
[1725972920117,0.134159,57232.0,57227.0,0.087366]
[1725972920416,0.134159,57232.0,57231.0,0.0004]
[1725972920612,0.15904922,57232.0,57231.0,0.0004]